[Event "Titled Tuesday Blitz July 11 Late 2023"]
[White "Tifferet, Shaked"]
[Black "Kiselev, Pavel"]
[WhiteFideId "2811529"]
[BlackFideId "4191102"]
[WhiteElo "2517"]
[BlackElo "2280"]
[Result "1-0"]
[Round "5"]
[TimeControl "180+2"]
[Date "2023.07.11"]
[WhiteClock "0:00:37"]
[BlackClock "0:00:00"]
[Board "105"]

1. c3 {[%clk 0:02:56]}  Nf6 {[%clk 0:02:58]} 2. d4 {[%clk 0:02:55]}  d5 {[%clk 0:02:58]} 3. Nf3 {[%clk 0:02:55]}  Bf5 {[%clk 0:02:58]} 4. Qb3 {[%clk 0:02:53]}  Nbd7 {[%clk 0:02:54]} 5. Qxb7 {[%clk 0:02:51]}  e6 {[%clk 0:02:54]} 6. Qb3 {[%clk 0:02:49]}  c5 {[%clk 0:02:54]} 7. dxc5 {[%clk 0:02:48]}  Bxc5 {[%clk 0:02:55]} 8. e3 {[%clk 0:02:44]}  Rb8 {[%clk 0:02:51]} 9. Qa4 {[%clk 0:02:43]}  O-O {[%clk 0:02:50]} 10. Nbd2 {[%clk 0:02:42]}  Qe7 {[%clk 0:02:35]} 11. Be2 {[%clk 0:02:39]}  Nb6 {[%clk 0:02:35]} 12. Qh4 {[%clk 0:02:38]}  Qd7 {[%clk 0:02:17]} 13. O-O {[%clk 0:02:33]}  a5 {[%clk 0:02:12]} 14. Nb3 {[%clk 0:02:31]}  Bd6 {[%clk 0:02:02]} 15. Nxa5 {[%clk 0:02:29]}  e5 {[%clk 0:01:32]} 16. Nb3 {[%clk 0:02:03]}  Ng4 {[%clk 0:01:28]} 17. h3 {[%clk 0:02:01]}  Nf6 {[%clk 0:01:28]} 18. g4 {[%clk 0:01:48]}  Be6 {[%clk 0:01:22]} 19. Ng5 {[%clk 0:01:45]}  h6 {[%clk 0:01:12]} 20. Nxe6 {[%clk 0:01:44]}  Qxe6 {[%clk 0:01:13]} 21. Qg3 {[%clk 0:01:39]}  e4 {[%clk 0:01:09]} 22. Qg2 {[%clk 0:01:39]}  Na4 {[%clk 0:01:01]} 23. Nd4 {[%clk 0:01:39]}  Qe5 {[%clk 0:01:01]} 24. Nc6 {[%clk 0:01:39]}  Qe6 {[%clk 0:00:58]} 25. Nxb8 {[%clk 0:01:38]}  Rxb8 {[%clk 0:00:59]} 26. f4 {[%clk 0:01:25]}  exf3 {[%clk 0:00:57]} 27. Bxf3 {[%clk 0:01:25]}  Bc5 {[%clk 0:00:55]} 28. Kh1 {[%clk 0:01:24]}  Ne4 {[%clk 0:00:47]} 29. Bxe4 {[%clk 0:01:08]}  dxe4 {[%clk 0:00:48]} 30. Qc2 {[%clk 0:01:07]}  Qc4 {[%clk 0:00:37]} 31. Rd1 {[%clk 0:00:57]}  g6 {[%clk 0:00:22]} 32. b3 {[%clk 0:00:53]}  Qxc3 {[%clk 0:00:22]} 33. Qxc3 {[%clk 0:00:53]}  Nxc3 {[%clk 0:00:23]} 34. Rd7 {[%clk 0:00:53]}  Ra8 {[%clk 0:00:07]} 35. Rc7 {[%clk 0:00:48]}  Bb4 {[%clk 0:00:04]} 36. Rc4 {[%clk 0:00:46]}  Nd5 {[%clk 0:00:03]} 37. a3 {[%clk 0:00:44]}  Bc3 {[%clk 0:00:04]} 38. Ra2 {[%clk 0:00:42]}  f5 {[%clk 0:00:03]} 39. Rc5 {[%clk 0:00:39]}  Rd8 {[%clk 0:00:03]} 40. Rc2 {[%clk 0:00:38]}  Be5 {[%clk 0:00:00]} 41. Rd2 {[%clk 0:00:37]} 1-0


[Site "https://www.chess.com"]

[Event "Titled Tuesday Blitz July 11 Late 2023"]
[White "rikchessmx"]
[Black "Womacka, Mathias"]
[BlackFideId "4611390"]
[WhiteElo "2255"]
[BlackElo "2516"]
[Result "0-1"]
[Round "5"]
[TimeControl "180+2"]
[Date "2023.07.11"]
[WhiteClock "0:01:20"]
[BlackClock "0:01:13"]
[Board "106"]

1. e4 {[%clk 0:03:00]}  c5 {[%clk 0:02:58]} 2. Nf3 {[%clk 0:03:00]}  d6 {[%clk 0:02:58]} 3. d4 {[%clk 0:03:00]}  cxd4 {[%clk 0:02:59]} 4. Nxd4 {[%clk 0:03:01]}  Nf6 {[%clk 0:02:59]} 5. Nc3 {[%clk 0:03:01]}  a6 {[%clk 0:02:59]} 6. f4 {[%clk 0:03:00]}  e5 {[%clk 0:02:58]} 7. Nf3 {[%clk 0:03:00]}  Nbd7 {[%clk 0:02:58]} 8. Bd3 {[%clk 0:03:01]}  Be7 {[%clk 0:02:56]} 9. O-O {[%clk 0:03:00]}  b5 {[%clk 0:02:55]} 10. a3 {[%clk 0:03:00]}  O-O {[%clk 0:02:54]} 11. Qe1 {[%clk 0:03:00]}  Bb7 {[%clk 0:02:53]} 12. Kh1 {[%clk 0:03:00]}  Re8 {[%clk 0:02:51]} 13. fxe5 {[%clk 0:02:59]}  Nxe5 {[%clk 0:02:50]} 14. Nd4 {[%clk 0:02:59]}  d5 {[%clk 0:02:30]} 15. exd5 {[%clk 0:02:48]}  Nxd3 {[%clk 0:02:28]} 16. cxd3 {[%clk 0:02:43]}  Nxd5 {[%clk 0:02:27]} 17. Nf5 {[%clk 0:02:39]}  Bf6 {[%clk 0:02:20]} 18. Qg3 {[%clk 0:02:31]}  Nxc3 {[%clk 0:02:11]} 19. bxc3 {[%clk 0:02:30]}  Re2 {[%clk 0:02:03]} 20. Rg1 {[%clk 0:01:57]}  Qd5 {[%clk 0:01:58]} 21. Ne3 {[%clk 0:01:51]}  Qxd3 {[%clk 0:01:51]} 22. Ng4 {[%clk 0:01:44]}  Qxg3 {[%clk 0:01:46]} 23. Nxf6+ {[%clk 0:01:44]}  gxf6 {[%clk 0:01:46]} 24. hxg3 {[%clk 0:01:44]}  Rd8 {[%clk 0:01:32]} 25. Bf4 {[%clk 0:01:33]}  Rd5 {[%clk 0:01:27]} 26. g4 {[%clk 0:01:27]}  h5 {[%clk 0:01:23]} 27. Kh2 {[%clk 0:01:26]}  hxg4 {[%clk 0:01:22]} 28. a4 {[%clk 0:01:25]}  Rd3 {[%clk 0:01:14]} 29. axb5 {[%clk 0:01:20]}  Rh3# {[%clk 0:01:13]} 0-1


[Site "https://www.chess.com"]

[Event "Titled Tuesday Blitz July 11 Late 2023"]
[White "Olivares Olivares, Claudio"]
[Black "rionelG"]
[WhiteFideId "3400786"]
[WhiteElo "2510"]
[BlackElo "2265"]
[Result "0-1"]
[Round "5"]
[TimeControl "180+2"]
[Date "2023.07.11"]
[WhiteClock "0:01:44"]
[BlackClock "0:01:18"]
[Board "107"]

1. e4 {[%clk 0:03:00]}  c5 {[%clk 0:02:42]} 2. Nf3 {[%clk 0:03:00]}  d6 {[%clk 0:02:42]} 3. d4 {[%clk 0:03:01]}  cxd4 {[%clk 0:02:43]} 4. Nxd4 {[%clk 0:03:02]}  Nf6 {[%clk 0:02:43]} 5. Nc3 {[%clk 0:03:02]}  a6 {[%clk 0:02:44]} 6. Be3 {[%clk 0:03:02]}  e5 {[%clk 0:02:42]} 7. Nf3 {[%clk 0:03:02]}  h6 {[%clk 0:02:38]} 8. Bc4 {[%clk 0:03:02]}  Be7 {[%clk 0:02:37]} 9. Bb3 {[%clk 0:03:02]}  Be6 {[%clk 0:02:37]} 10. O-O {[%clk 0:03:01]}  O-O {[%clk 0:02:36]} 11. Nh4 {[%clk 0:03:01]}  Nc6 {[%clk 0:02:30]} 12. Nf5 {[%clk 0:03:00]}  Bxf5 {[%clk 0:02:13]} 13. exf5 {[%clk 0:03:00]}  Rc8 {[%clk 0:02:12]} 14. f4 {[%clk 0:03:00]}  Na5 {[%clk 0:02:08]} 15. fxe5 {[%clk 0:03:00]}  dxe5 {[%clk 0:02:08]} 16. Qxd8 {[%clk 0:02:58]}  Rfxd8 {[%clk 0:02:07]} 17. Bb6 {[%clk 0:02:50]}  Nxb3 {[%clk 0:02:07]} 18. axb3 {[%clk 0:02:38]}  Bc5+ {[%clk 0:01:59]} 19. Bxc5 {[%clk 0:02:38]}  Rxc5 {[%clk 0:02:00]} 20. Rfd1 {[%clk 0:02:34]}  Rxd1+ {[%clk 0:01:56]} 21. Rxd1 {[%clk 0:02:34]}  e4 {[%clk 0:01:57]} 22. Kf2 {[%clk 0:02:17]}  Rxf5+ {[%clk 0:01:49]} 23. Ke3 {[%clk 0:02:17]}  Ng4+ {[%clk 0:01:44]} 24. Kxe4 {[%clk 0:02:11]}  Rf2 {[%clk 0:01:44]} 25. Rd7 {[%clk 0:01:52]}  Rxg2 {[%clk 0:01:33]} 26. Rxb7 {[%clk 0:01:52]}  Rxc2 {[%clk 0:01:30]} 27. Na4 {[%clk 0:01:45]}  Rxh2 {[%clk 0:01:25]} 28. b4 {[%clk 0:01:45]}  h5 {[%clk 0:01:24]} 29. Kf3 {[%clk 0:01:45]}  f5 {[%clk 0:01:20]} 30. Rb6 {[%clk 0:01:44]}  h4 {[%clk 0:01:18]} 31. Rxa6 {[%clk 0:01:44]}  Rf2# {[%clk 0:01:18]} 0-1


[Site "https://www.chess.com"]

[Event "Titled Tuesday Blitz July 11 Late 2023"]
[White "Sebag, Marie"]
[Black "Sala, Giulia"]
[WhiteFideId "617822"]
[BlackFideId "2840451"]
[WhiteElo "2509"]
[BlackElo "2243"]
[Result "0-1"]
[Round "5"]
[TimeControl "180+2"]
[Date "2023.07.11"]
[WhiteClock "0:00:12"]
[BlackClock "0:00:40"]
[Board "108"]

1. d4 {[%clk 0:02:57]}  Nf6 {[%clk 0:02:40]} 2. c4 {[%clk 0:02:56]}  e6 {[%clk 0:02:40]} 3. Nc3 {[%clk 0:02:56]}  d5 {[%clk 0:02:40]} 4. cxd5 {[%clk 0:02:54]}  exd5 {[%clk 0:02:41]} 5. Bg5 {[%clk 0:02:54]}  Be7 {[%clk 0:02:42]} 6. e3 {[%clk 0:02:54]}  c5 {[%clk 0:02:42]} 7. Nf3 {[%clk 0:02:54]}  Nc6 {[%clk 0:02:42]} 8. Be2 {[%clk 0:02:53]}  h6 {[%clk 0:02:42]} 9. Bh4 {[%clk 0:02:51]}  O-O {[%clk 0:02:42]} 10. O-O {[%clk 0:02:50]}  c4 {[%clk 0:02:41]} 11. b3 {[%clk 0:02:47]}  cxb3 {[%clk 0:02:40]} 12. Qxb3 {[%clk 0:02:45]}  Na5 {[%clk 0:02:39]} 13. Qc2 {[%clk 0:02:42]}  Be6 {[%clk 0:02:35]} 14. Ne5 {[%clk 0:02:39]}  Rc8 {[%clk 0:02:35]} 15. Rac1 {[%clk 0:02:38]}  Ne4 {[%clk 0:02:35]} 16. Bxe7 {[%clk 0:02:33]}  Qxe7 {[%clk 0:02:36]} 17. Qb2 {[%clk 0:02:33]}  Nd6 {[%clk 0:02:25]} 18. Qa3 {[%clk 0:02:22]}  b6 {[%clk 0:02:13]} 19. Nb5 {[%clk 0:02:19]}  Rxc1 {[%clk 0:02:07]} 20. Rxc1 {[%clk 0:02:18]}  Rd8 {[%clk 0:02:07]} 21. Rc7 {[%clk 0:02:12]}  Qf8 {[%clk 0:02:07]} 22. Nxa7 {[%clk 0:01:56]}  Ne4 {[%clk 0:01:58]} 23. Qxf8+ {[%clk 0:01:52]}  Kxf8 {[%clk 0:01:58]} 24. f3 {[%clk 0:01:50]}  Nd2 {[%clk 0:01:54]} 25. Rc2 {[%clk 0:01:29]}  Ndc4 {[%clk 0:01:53]} 26. Nxc4 {[%clk 0:01:24]}  dxc4 {[%clk 0:01:52]} 27. Nb5 {[%clk 0:01:24]}  Rd5 {[%clk 0:01:49]} 28. a4 {[%clk 0:01:21]}  Rd8 {[%clk 0:01:44]} 29. e4 {[%clk 0:01:19]}  Rc8 {[%clk 0:01:40]} 30. d5 {[%clk 0:01:17]}  Bd7 {[%clk 0:01:40]} 31. Nc3 {[%clk 0:01:04]}  Ke7 {[%clk 0:01:25]} 32. Rb2 {[%clk 0:01:04]}  Rb8 {[%clk 0:01:19]} 33. Kf2 {[%clk 0:01:01]}  Kd6 {[%clk 0:01:19]} 34. Ke3 {[%clk 0:01:01]}  Kc5 {[%clk 0:01:18]} 35. Nb5 {[%clk 0:00:56]}  Nb3 {[%clk 0:01:15]} 36. Rc2 {[%clk 0:00:49]}  Bxb5 {[%clk 0:01:15]} 37. axb5 {[%clk 0:00:48]}  Na5 {[%clk 0:01:15]} 38. Rb2 {[%clk 0:00:41]}  Nb3 {[%clk 0:01:07]} 39. Rc2 {[%clk 0:00:32]}  Na5 {[%clk 0:01:07]} 40. Rd2 {[%clk 0:00:31]}  Kxb5 {[%clk 0:01:06]} 41. d6 {[%clk 0:00:31]}  Kc6 {[%clk 0:01:06]} 42. e5 {[%clk 0:00:31]}  b5 {[%clk 0:01:06]} 43. f4 {[%clk 0:00:31]}  b4 {[%clk 0:01:06]} 44. Bf3+ {[%clk 0:00:26]}  Kd7 {[%clk 0:01:04]} 45. Bg4+ {[%clk 0:00:26]}  Kd8 {[%clk 0:01:05]} 46. f5 {[%clk 0:00:24]}  c3 {[%clk 0:00:56]} 47. Rd5 {[%clk 0:00:23]}  c2 {[%clk 0:00:54]} 48. Rc5 {[%clk 0:00:21]}  b3 {[%clk 0:00:51]} 49. e6 {[%clk 0:00:21]}  b2 {[%clk 0:00:41]} 50. f6 {[%clk 0:00:16]}  c1=Q+ {[%clk 0:00:40]} 51. Kd4 {[%clk 0:00:12]}  Qd2+ {[%clk 0:00:40]} 0-1


[Site "https://www.chess.com"]

[Event "Titled Tuesday Blitz July 11 Late 2023"]
[White "Upper, John"]
[Black "Forgacs, Attila Jr."]
[WhiteFideId "2606437"]
[BlackFideId "773654"]
[WhiteElo "2010"]
[BlackElo "2506"]
[Result "0-1"]
[Round "5"]
[TimeControl "180+2"]
[Date "2023.07.11"]
[WhiteClock "0:00:42"]
[BlackClock "0:00:24"]
[Board "111"]

1. Nf3 {[%clk 0:02:59]}  Nf6 {[%clk 0:03:00]} 2. c4 {[%clk 0:02:57]}  g6 {[%clk 0:03:00]} 3. Nc3 {[%clk 0:02:57]}  Bg7 {[%clk 0:03:00]} 4. e4 {[%clk 0:02:57]}  d6 {[%clk 0:03:00]} 5. d4 {[%clk 0:02:57]}  O-O {[%clk 0:03:01]} 6. Be2 {[%clk 0:02:58]}  Nbd7 {[%clk 0:03:01]} 7. O-O {[%clk 0:02:57]}  e5 {[%clk 0:03:02]} 8. d5 {[%clk 0:02:57]}  Nc5 {[%clk 0:02:57]} 9. Qc2 {[%clk 0:02:57]}  a5 {[%clk 0:02:58]} 10. b3 {[%clk 0:02:46]}  Ne8 {[%clk 0:02:53]} 11. Bg5 {[%clk 0:02:40]}  f6 {[%clk 0:02:53]} 12. Be3 {[%clk 0:02:36]}  f5 {[%clk 0:02:51]} 13. Nd2 {[%clk 0:02:26]}  f4 {[%clk 0:02:49]} 14. Bxc5 {[%clk 0:02:26]}  dxc5 {[%clk 0:02:49]} 15. Qd1 {[%clk 0:02:25]}  h5 {[%clk 0:02:47]} 16. a3 {[%clk 0:02:18]}  Nd6 {[%clk 0:02:46]} 17. Nb5 {[%clk 0:02:11]}  Qe7 {[%clk 0:02:03]} 18. Re1 {[%clk 0:02:01]}  Ra6 {[%clk 0:01:48]} 19. Bxh5 {[%clk 0:01:41]}  gxh5 {[%clk 0:01:46]} 20. Qxh5 {[%clk 0:01:42]}  Nxb5 {[%clk 0:01:40]} 21. cxb5 {[%clk 0:01:38]}  Rh6 {[%clk 0:01:41]} 22. Qe2 {[%clk 0:01:21]}  Qh4 {[%clk 0:01:39]} 23. Nf1 {[%clk 0:01:19]}  f3 {[%clk 0:01:31]} 24. gxf3 {[%clk 0:01:19]}  Bh3 {[%clk 0:01:26]} 25. Ng3 {[%clk 0:01:15]}  Bd7 {[%clk 0:01:13]} 26. Nf1 {[%clk 0:01:12]}  Rf4 {[%clk 0:01:01]} 27. Rec1 {[%clk 0:01:07]}  Qg5+ {[%clk 0:00:54]} 28. Kh1 {[%clk 0:01:02]}  Rfh4 {[%clk 0:00:38]} 29. Rxc5 {[%clk 0:00:57]}  Rxh2+ {[%clk 0:00:23]} 30. Nxh2 {[%clk 0:00:42]}  Qh4 {[%clk 0:00:24]} 0-1


[Site "https://www.chess.com"]

[Event "Titled Tuesday Blitz July 11 Late 2023"]
[White "Urbina Perez, Juan Antonio"]
[Black "gordonzyxu"]
[WhiteFideId "2217368"]
[WhiteElo "2502"]
[BlackElo "1959"]
[Result "1-0"]
[Round "5"]
[TimeControl "180+2"]
[Date "2023.07.11"]
[WhiteClock "0:00:24"]
[BlackClock "0:00:04"]
[Board "112"]

1. e4 {[%clk 0:02:56]}  e5 {[%clk 0:02:59]} 2. Nf3 {[%clk 0:02:56]}  Nf6 {[%clk 0:02:59]} 3. Nxe5 {[%clk 0:02:53]}  d6 {[%clk 0:02:59]} 4. Nf3 {[%clk 0:02:53]}  Nxe4 {[%clk 0:02:59]} 5. c4 {[%clk 0:02:54]}  Nc6 {[%clk 0:02:58]} 6. Nc3 {[%clk 0:02:53]}  Nxc3 {[%clk 0:02:52]} 7. bxc3 {[%clk 0:02:53]}  Be6 {[%clk 0:02:46]} 8. d4 {[%clk 0:02:51]}  Bg4 {[%clk 0:02:35]} 9. Be2 {[%clk 0:02:49]}  Be7 {[%clk 0:02:35]} 10. O-O {[%clk 0:02:49]}  O-O {[%clk 0:02:35]} 11. Re1 {[%clk 0:02:48]}  Bf6 {[%clk 0:02:33]} 12. h3 {[%clk 0:02:47]}  Bh5 {[%clk 0:02:32]} 13. Qc2 {[%clk 0:02:35]}  Re8 {[%clk 0:02:28]} 14. Bd2 {[%clk 0:02:28]}  d5 {[%clk 0:02:05]} 15. Qf5 {[%clk 0:02:18]}  Bxf3 {[%clk 0:01:47]} 16. Bxf3 {[%clk 0:02:16]}  dxc4 {[%clk 0:01:45]} 17. Qb5 {[%clk 0:02:06]}  Qd6 {[%clk 0:01:14]} 18. Qxb7 {[%clk 0:01:50]}  Ne7 {[%clk 0:01:07]} 19. Qxa8 {[%clk 0:01:37]}  Rxa8 {[%clk 0:01:07]} 20. Bxa8 {[%clk 0:01:36]}  c5 {[%clk 0:01:08]} 21. Rab1 {[%clk 0:01:29]}  cxd4 {[%clk 0:01:04]} 22. cxd4 {[%clk 0:01:29]}  h6 {[%clk 0:00:51]} 23. Bb4 {[%clk 0:01:24]}  Qd8 {[%clk 0:00:47]} 24. Be4 {[%clk 0:01:16]}  Qxd4 {[%clk 0:00:42]} 25. Bxe7 {[%clk 0:00:59]}  Bxe7 {[%clk 0:00:36]} 26. Rb8+ {[%clk 0:00:59]}  Bf8 {[%clk 0:00:32]} 27. Bb1 {[%clk 0:00:58]}  g6 {[%clk 0:00:26]} 28. Ree8 {[%clk 0:00:57]}  Qd1+ {[%clk 0:00:25]} 29. Kh2 {[%clk 0:00:57]}  Qd6+ {[%clk 0:00:20]} 30. g3 {[%clk 0:00:57]}  Qd2 {[%clk 0:00:20]} 31. Rxf8+ {[%clk 0:00:56]}  Kg7 {[%clk 0:00:20]} 32. Rg8+ {[%clk 0:00:49]}  Kf6 {[%clk 0:00:21]} 33. Kg2 {[%clk 0:00:48]}  c3 {[%clk 0:00:21]} 34. Rgc8 {[%clk 0:00:45]}  Qd5+ {[%clk 0:00:19]} 35. Kh2 {[%clk 0:00:40]}  Qd2 {[%clk 0:00:19]} 36. Rc6+ {[%clk 0:00:36]}  Kg7 {[%clk 0:00:18]} 37. Be4 {[%clk 0:00:34]}  Qxf2+ {[%clk 0:00:18]} 38. Bg2 {[%clk 0:00:34]}  c2 {[%clk 0:00:18]} 39. Rbc8 {[%clk 0:00:34]}  c1=Q {[%clk 0:00:15]} 40. Rxc1 {[%clk 0:00:34]}  Qxa2 {[%clk 0:00:16]} 41. R1c2 {[%clk 0:00:33]}  Qe6 {[%clk 0:00:16]} 42. R8c7 {[%clk 0:00:32]}  Qb6 {[%clk 0:00:13]} 43. Bd5 {[%clk 0:00:31]}  Kf6 {[%clk 0:00:12]} 44. Rxf7+ {[%clk 0:00:30]}  Ke5 {[%clk 0:00:12]} 45. Bg2 {[%clk 0:00:29]}  a5 {[%clk 0:00:11]} 46. Re7+ {[%clk 0:00:27]}  Kd4 {[%clk 0:00:10]} 47. Re4+ {[%clk 0:00:26]}  Kd3 {[%clk 0:00:10]} 48. Rec4 {[%clk 0:00:25]}  Qf6 {[%clk 0:00:06]} 49. Be4+ {[%clk 0:00:24]}  Ke3 {[%clk 0:00:06]} 50. R2c3+ {[%clk 0:00:24]}  Kf2 {[%clk 0:00:04]} 51. Rf3+ {[%clk 0:00:24]} 1-0


[Site "https://www.chess.com"]

[Event "Titled Tuesday Blitz July 11 Late 2023"]
[White "dodoucb"]
[Black "Navyblue1"]
[WhiteElo "2405"]
[BlackElo "1838"]
[Result "0-1"]
[Round "5"]
[TimeControl "180+2"]
[Date "2023.07.11"]
[WhiteClock "0:00:04"]
[BlackClock "0:00:12"]
[Board "113"]

1. e4 {[%clk 0:02:58]}  c5 {[%clk 0:02:59]} 2. Nc3 {[%clk 0:02:56]}  e6 {[%clk 0:02:53]} 3. g3 {[%clk 0:02:50]}  a6 {[%clk 0:02:49]} 4. Bg2 {[%clk 0:02:50]}  Nc6 {[%clk 0:02:42]} 5. d3 {[%clk 0:02:48]}  Nf6 {[%clk 0:02:37]} 6. f4 {[%clk 0:02:42]}  d6 {[%clk 0:02:32]} 7. Nf3 {[%clk 0:02:41]}  b5 {[%clk 0:02:07]} 8. O-O {[%clk 0:02:40]}  Bb7 {[%clk 0:02:06]} 9. Ne2 {[%clk 0:02:40]}  g6 {[%clk 0:01:57]} 10. f5 {[%clk 0:02:25]}  exf5 {[%clk 0:01:51]} 11. exf5 {[%clk 0:02:25]}  Bg7 {[%clk 0:01:49]} 12. Bf4 {[%clk 0:01:51]}  O-O {[%clk 0:01:47]} 13. Qd2 {[%clk 0:01:49]}  Re8 {[%clk 0:01:43]} 14. Rae1 {[%clk 0:01:41]}  Qa5 {[%clk 0:01:30]} 15. Qxa5 {[%clk 0:01:34]}  Nxa5 {[%clk 0:01:29]} 16. Bxd6 {[%clk 0:01:34]}  Nd7 {[%clk 0:01:19]} 17. c3 {[%clk 0:01:21]}  gxf5 {[%clk 0:01:16]} 18. Nh4 {[%clk 0:01:19]}  Bxg2 {[%clk 0:01:13]} 19. Kxg2 {[%clk 0:01:20]}  Nb7 {[%clk 0:01:12]} 20. Nxf5 {[%clk 0:01:13]}  Re6 {[%clk 0:01:11]} 21. Nf4 {[%clk 0:00:50]}  Rxd6 {[%clk 0:00:48]} 22. Nxd6 {[%clk 0:00:48]}  Nxd6 {[%clk 0:00:49]} 23. Re7 {[%clk 0:00:46]}  Rd8 {[%clk 0:00:34]} 24. Nd5 {[%clk 0:00:41]}  Ne5 {[%clk 0:00:20]} 25. Ra7 {[%clk 0:00:26]}  Nxd3 {[%clk 0:00:20]} 26. Rxa6 {[%clk 0:00:25]}  Nxb2 {[%clk 0:00:21]} 27. Rc6 {[%clk 0:00:16]}  Na4 {[%clk 0:00:20]} 28. Rc7 {[%clk 0:00:14]}  Kh8 {[%clk 0:00:16]} 29. Rd1 {[%clk 0:00:10]}  Rf8 {[%clk 0:00:13]} 30. Rd7 {[%clk 0:00:09]}  Nc4 {[%clk 0:00:13]} 31. Rf1 {[%clk 0:00:09]}  Ne5 {[%clk 0:00:12]} 32. Rf5 {[%clk 0:00:04]}  Nxd7 {[%clk 0:00:12]} 0-1


[Site "https://www.chess.com"]

[Event "Titled Tuesday Blitz July 11 Late 2023"]
[White "Flynn, Jacob"]
[Black "Sadykov, Ramil"]
[WhiteFideId "2509393"]
[BlackFideId "24113590"]
[WhiteElo "2449"]
[BlackElo "2600"]
[Result "1-0"]
[Round "5"]
[TimeControl "180+2"]
[Date "2023.07.11"]
[WhiteClock "0:00:56"]
[BlackClock "0:00:02"]
[Board "114"]

1. d4 {[%clk 0:03:00]}  Nf6 {[%clk 0:02:59]} 2. c4 {[%clk 0:03:01]}  e6 {[%clk 0:02:59]} 3. Nc3 {[%clk 0:03:02]}  Bb4 {[%clk 0:02:59]} 4. Qc2 {[%clk 0:03:02]}  d5 {[%clk 0:02:57]} 5. cxd5 {[%clk 0:03:02]}  exd5 {[%clk 0:02:57]} 6. Bg5 {[%clk 0:03:02]}  h6 {[%clk 0:02:56]} 7. Bh4 {[%clk 0:03:02]}  c5 {[%clk 0:02:54]} 8. dxc5 {[%clk 0:03:02]}  Nc6 {[%clk 0:02:43]} 9. e3 {[%clk 0:03:02]}  O-O {[%clk 0:02:37]} 10. Nf3 {[%clk 0:03:00]}  Bg4 {[%clk 0:02:33]} 11. Be2 {[%clk 0:02:59]}  Bxf3 {[%clk 0:02:24]} 12. Bxf3 {[%clk 0:02:59]}  d4 {[%clk 0:02:25]} 13. O-O-O {[%clk 0:02:51]}  g5 {[%clk 0:01:50]} 14. Bxc6 {[%clk 0:02:28]}  bxc6 {[%clk 0:01:47]} 15. Rxd4 {[%clk 0:02:25]}  Qa5 {[%clk 0:01:46]} 16. Bg3 {[%clk 0:02:23]}  Bxc3 {[%clk 0:01:30]} 17. Qxc3 {[%clk 0:02:19]}  Qxa2 {[%clk 0:01:29]} 18. Kc2 {[%clk 0:02:15]}  Qe6 {[%clk 0:01:17]} 19. Qc4 {[%clk 0:02:09]}  Qc8 {[%clk 0:00:47]} 20. e4 {[%clk 0:02:02]}  Re8 {[%clk 0:00:38]} 21. Rhd1 {[%clk 0:01:56]}  h5 {[%clk 0:00:32]} 22. f3 {[%clk 0:01:54]}  h4 {[%clk 0:00:31]} 23. Bd6 {[%clk 0:01:52]}  h3 {[%clk 0:00:28]} 24. g4 {[%clk 0:01:49]}  a5 {[%clk 0:00:24]} 25. R1d3 {[%clk 0:01:32]}  Ra7 {[%clk 0:00:21]} 26. Rb3 {[%clk 0:01:31]}  Rb7 {[%clk 0:00:13]} 27. Rxb7 {[%clk 0:01:18]}  Qxb7 {[%clk 0:00:14]} 28. Qb3 {[%clk 0:01:14]}  Qa6 {[%clk 0:00:14]} 29. Bg3 {[%clk 0:01:06]}  Qe2+ {[%clk 0:00:09]} 30. Rd2 {[%clk 0:01:07]}  Qf1 {[%clk 0:00:05]} 31. Qd3 {[%clk 0:00:56]}  Kg7 {[%clk 0:00:02]} 32. Qxf1 {[%clk 0:00:56]} 1-0


[Site "https://www.chess.com"]

[Event "Titled Tuesday Blitz July 11 Late 2023"]
[White "Prydun, Andriy"]
[Black "Thorfinnsson, Bragi"]
[WhiteFideId "14145898"]
[BlackFideId "2300958"]
[WhiteElo "2383"]
[BlackElo "2528"]
[Result "0-1"]
[Round "5"]
[TimeControl "180+2"]
[Date "2023.07.11"]
[WhiteClock "0:00:00"]
[BlackClock "0:00:36"]
[Board "117"]

1. d4 {[%clk 0:03:00]}  d5 {[%clk 0:02:42]} 2. Nf3 {[%clk 0:02:59]}  Nf6 {[%clk 0:02:41]} 3. a3 {[%clk 0:02:58]}  Bf5 {[%clk 0:02:36]} 4. Bf4 {[%clk 0:02:55]}  e6 {[%clk 0:02:35]} 5. e3 {[%clk 0:02:55]}  Bd6 {[%clk 0:02:30]} 6. Ne5 {[%clk 0:02:42]}  O-O {[%clk 0:02:29]} 7. Bd3 {[%clk 0:02:40]}  Nc6 {[%clk 0:02:29]} 8. Bxf5 {[%clk 0:02:36]}  exf5 {[%clk 0:02:30]} 9. Nxc6 {[%clk 0:02:36]}  bxc6 {[%clk 0:02:30]} 10. Bg5 {[%clk 0:02:35]}  h6 {[%clk 0:02:29]} 11. Bh4 {[%clk 0:02:23]}  g5 {[%clk 0:02:23]} 12. Bg3 {[%clk 0:02:23]}  f4 {[%clk 0:02:23]} 13. exf4 {[%clk 0:02:22]}  Re8+ {[%clk 0:02:23]} 14. Kf1 {[%clk 0:02:21]}  Ne4 {[%clk 0:02:04]} 15. f3 {[%clk 0:01:43]}  Nxg3+ {[%clk 0:01:51]} 16. hxg3 {[%clk 0:01:44]}  gxf4 {[%clk 0:01:52]} 17. g4 {[%clk 0:01:17]}  Re6 {[%clk 0:01:50]} 18. Nd2 {[%clk 0:01:12]}  Qe7 {[%clk 0:01:50]} 19. Kg1 {[%clk 0:00:30]}  Re2 {[%clk 0:01:46]} 20. Ne4 {[%clk 0:00:23]}  Rxe4 {[%clk 0:01:38]} 21. fxe4 {[%clk 0:00:22]}  dxe4 {[%clk 0:01:39]} 22. Qe1 {[%clk 0:00:19]}  Qg5 {[%clk 0:01:30]} 23. Qh4 {[%clk 0:00:18]}  c5 {[%clk 0:01:25]} 24. Qxg5+ {[%clk 0:00:18]}  hxg5 {[%clk 0:01:26]} 25. d5 {[%clk 0:00:12]}  Rb8 {[%clk 0:01:21]} 26. b3 {[%clk 0:00:12]}  c4 {[%clk 0:01:21]} 27. bxc4 {[%clk 0:00:12]}  Rb2 {[%clk 0:01:21]} 28. Rc1 {[%clk 0:00:10]}  Bxa3 {[%clk 0:01:18]} 29. Rh6 {[%clk 0:00:07]}  Bc5+ {[%clk 0:00:53]} 30. Kh1 {[%clk 0:00:04]}  Be3 {[%clk 0:00:53]} 31. Ra1 {[%clk 0:00:01]}  Rxc2 {[%clk 0:00:53]} 32. Rc6 {[%clk 0:00:02]}  Bb6 {[%clk 0:00:52]} 33. c5 {[%clk 0:00:02]}  Rxc5 {[%clk 0:00:51]} 34. Rxc5 {[%clk 0:00:02]}  Bxc5 {[%clk 0:00:52]} 35. Rb1 {[%clk 0:00:02]}  Kg7 {[%clk 0:00:49]} 36. Rb5 {[%clk 0:00:02]}  Bb6 {[%clk 0:00:48]} 37. d6 {[%clk 0:00:03]}  cxd6 {[%clk 0:00:44]} 38. Rxg5+ {[%clk 0:00:03]}  Kf8 {[%clk 0:00:38]} 39. Rd5 {[%clk 0:00:02]}  e3 {[%clk 0:00:37]} 40. Rd1 {[%clk 0:00:02]}  Ba5 {[%clk 0:00:36]} 41. Rxd6 {[%clk 0:00:00]}  e2 {[%clk 0:00:36]} 0-1


[Site "https://www.chess.com"]